bitfinex-derivatives/quotes_BTCF0:USTF0_20240902
["timestamp","ask_amount","ask_price","bid_price","bid_amount"]
[1725290297038,0.802598,58634.0,58633.0,0.00025575]
[1725290297341,1.402598,58634.0,58633.0,0.00025575]
[1725290298042,1.482598,58634.0,58633.0,0.00025575]
[1725290298844,1.482598,58634.0,58633.0,0.00125575]
[1725290299050,1.484598,58634.0,58633.0,0.00225575]
[1725290299545,0.884598,58634.0,58633.0,0.00225575]
[1725290299735,1.484598,58634.0,58633.0,0.00225575]
[1725290301138,0.684598,58634.0,58633.0,0.00225575]
[1725290301362,1.284598,58634.0,58633.0,0.00225575]
[1725290301644,0.087679,58634.0,58633.0,0.00225575]
[1725290303643,0.448479,58634.0,58633.0,0.00225575]
[1725290304238,0.960119,58634.0,58633.0,0.00225575]
[1725290304439,1.045398,58634.0,58633.0,0.00225575]
[1725290305234,0.960119,58634.0,58633.0,0.00225575]
[1725290305439,0.448479,58634.0,58633.0,0.00225575]
[1725290305943,0.533758,58634.0,58633.0,0.00225575]
[1725290306942,1.045398,58634.0,58633.0,0.00225575]
[1725290307949,0.533758,58634.0,58633.0,0.00225575]
[1725290310854,0.619037,58634.0,58633.0,0.00225575]
[1725290311543,0.533758,58634.0,58633.0,0.00225575]
[1725290311750,0.0853,58619.0,58618.0,0.085301]
[1725290312063,0.0857,58619.0,58618.0,0.085301]
[1725290312248,0.0004,58619.0,58618.0,0.285301]
[1725290313154,0.0024,58619.0,58618.0,0.285301]
[1725290313844,0.0024,58619.0,58618.0,0.291301]
[1725290315348,0.0024,58619.0,58618.0,0.091301]
[1725290315957,0.0877,58619.0,58618.0,0.006]
[1725290319959,0.0877,58619.0,58618.0,0.091302]
[1725290324162,0.0877,58619.0,58618.0,0.211302]
[1725290326660,0.0877,58619.0,58618.0,0.091302]
[1725290326861,0.2077,58619.0,58618.0,0.091302]
[1725290332176,0.2077,58619.0,58618.0,0.006]
[1725290332177,0.293,58619.0,58618.0,0.006]
[1725290332372,0.6538,58619.0,58618.0,0.006]
[1725290332778,0.7026,58619.0,58618.0,0.006]
[1725290334393,0.7879,58619.0,58618.0,0.006]
[1725290335985,0.170616,58614.0,58613.0,0.0008]
[1725290336288,0.651816,58614.0,58613.0,0.0008]
[1725290337080,0.651816,58614.0,58613.0,0.0128]
[1725290337281,0.651816,58614.0,58613.0,0.0158]
[1725290337782,0.085324,58603.0,58602.0,0.3608]
[1725290337988,0.205324,58603.0,58602.0,0.3608]
[1725290338396,0.085324,58603.0,58602.0,0.3608]
[1725290339286,0.205321,58605.0,58600.0,0.12]
[1725290339486,0.085327,58601.0,58600.0,0.12]
[1725290339687,0.077327,58601.0,58600.0,0.12433399]
[1725290340297,0.077327,58601.0,58600.0,0.00433399]
[1725290340602,0.077327,58601.0,58599.0,0.085329]
[1725290340603,0.074328,58600.0,58599.0,0.085329]
[1725290340804,0.194328,58600.0,58599.0,0.085329]
[1725290341399,0.085333,58597.0,58596.0,0.085331]
[1725290341587,0.205333,58597.0,58596.0,0.085331]
[1725290342192,0.205333,58597.0,58596.0,0.08962842]
[1725290342193,0.202333,58597.0,58596.0,0.08962842]
[1725290343107,0.203333,58597.0,58596.0,0.08962842]
[1725290343293,0.083333,58597.0,58596.0,0.08962842]
[1725290343796,0.203333,58597.0,58596.0,0.08962842]
[1725290343999,0.205133,58597.0,58596.0,0.09662842]
[1725290345097,0.204133,58597.0,58596.0,0.09262842]
[1725290345499,0.650266,58597.0,58596.0,0.00729742]
[1725290345693,0.564933,58597.0,58582.0,0.0957]
[1725290345897,0.205349,58586.0,58584.0,0.085351]
[1725290346201,0.08535,58585.0,58584.0,0.085351]
[1725290347202,0.205345,58589.0,58583.0,0.12]
[1725290347404,0.085346,58588.0,58586.0,0.205347]
[1725290347701,0.085347,58587.0,58586.0,0.205347]
[1725290347903,0.085347,58587.0,58586.0,0.085347]
[1725290348499,0.08535,58585.0,58584.0,0.005]
[1725290348701,0.08715,58585.0,58584.0,0.005]
[1725290349095,0.08715,58585.0,58581.0,0.56268]
[1725290349298,0.08715,58585.0,58584.0,0.085351]
[1725290349299,0.08415,58585.0,58584.0,0.085351]
[1725290349500,0.08235,58585.0,58584.0,0.085351]
[1725290350603,0.08335,58585.0,58584.0,0.085351]
[1725290351909,0.08335,58585.0,58584.0,0.090351]
[1725290354003,0.001,58585.0,58584.0,0.175702]
[1725290354204,0.085328,58600.0,58594.0,0.085337]
[1725290354404,0.085328,58600.0,58594.0,0.285337]
[1725290355200,0.3608,58602.0,58594.0,0.285337]
[1725290355201,0.085329,58599.0,58594.0,0.085337]
[1725290355508,0.00725597,58595.0,58594.0,0.086337]
[1725290356012,0.00725597,58595.0,58594.0,0.171674]
[1725290359907,0.00725597,58595.0,58594.0,0.371674]
[1725290360097,0.00725597,58595.0,58594.0,1.569011]
[1725290360604,0.00725597,58595.0,58594.0,1.62009439]
[1725290360910,0.00725597,58595.0,58594.0,1.569011]
[1725290361102,0.00725597,58595.0,58594.0,1.62441719]
[1725290361901,0.3608,58613.0,58610.0,0.085313]
[1725290361902,0.085312,58611.0,58610.0,0.085313]
[1725290363310,0.098312,58611.0,58610.0,0.086313]
[1725290363707,0.099312,58611.0,58610.0,0.086313]
[1725290364910,0.106312,58611.0,58610.0,0.086313]
[1725290366107,0.3608,58613.0,58612.0,0.085311]
[1725290367313,0.3688,58613.0,58612.0,0.086311]
[1725290368015,0.454109,58613.0,58612.0,0.086311]
[1725290368514,0.466109,58613.0,58612.0,0.087311]
[1725290368908,0.458109,58613.0,58612.0,0.086311]
[1725290369227,0.467109,58613.0,58612.0,0.087311]
[1725290369514,0.457109,58613.0,58612.0,0.086311]
[1725290369721,0.466109,58613.0,58612.0,0.087311]
[1725290372224,0.3808,58613.0,58612.0,0.087311]
[1725290372517,0.3808,58613.0,58612.0,0.172622]
[1725290374717,0.3808,58613.0,58612.0,0.087311]
[1725290376020,0.466109,58613.0,58612.0,0.087311]
[1725290376213,0.466109,58613.0,58612.0,0.002]
[1725290379917,0.105309,58613.0,58612.0,0.087311]
[1725290383223,0.105309,58613.0,58612.0,0.002]
[1725290384130,0.105309,58613.0,58612.0,0.087311]
[1725290389928,0.225309,58613.0,58612.0,0.087311]
[1725290391423,0.225309,58613.0,58612.0,0.002]
[1725290393535,0.105309,58613.0,58612.0,0.002]
[1725290393837,0.225309,58613.0,58612.0,0.002]
[1725290396237,0.105309,58613.0,58612.0,0.002]
[1725290396432,0.02,58613.0,58612.0,0.172622]
[1725290396933,0.00025597,58616.0,58615.0,0.170612]
[1725290397136,0.00025597,58616.0,58615.0,0.94177805]
[1725290397334,0.00025597,58616.0,58615.0,1.402412]
[1725290397635,0.00025597,58616.0,58615.0,0.85354779]
[1725290398037,0.00025597,58616.0,58615.0,0.882412]
[1725290399342,0.00125597,58616.0,58615.0,0.882412]
[1725290399636,0.00125597,58616.0,58615.0,0.883412]
[1725290400043,0.00025597,58616.0,58615.0,0.371612]
[1725290400335,0.00025597,58616.0,58615.0,0.375612]
[1725290401034,0.00025597,58616.0,58615.0,0.374612]
[1725290401331,0.00025597,58616.0,58615.0,1.486412]
[1725290401530,0.00025597,58616.0,58615.0,1.49003043]
[1725290402653,0.0004,58637.0,58615.0,1.49003043]
[1725290402942,0.00128,58637.0,58636.0,0.085276]
[1725290403137,0.0004,58637.0,58636.0,0.085276]
[1725290406034,0.0004,58637.0,58636.0,0.086276]
[1725290406240,0.0074,58637.0,58636.0,0.087276]
[1725290406431,0.0074,58637.0,58636.0,0.086276]
[1725290406631,0.0074,58637.0,58636.0,0.087276]
[1725290406836,0.0074,58637.0,58636.0,0.09087272]
[1725290407540,0.0034,58637.0,58636.0,0.09087272]
[1725290408341,0.0034,58637.0,58636.0,0.29087272]
[1725290409338,0.0074,58637.0,58636.0,0.29087272]
[1725290410131,0.0074,58637.0,58636.0,0.65167272]
[1725290412039,0.0074,58637.0,58636.0,1.84858872]
[1725290412839,0.0074,58637.0,58636.0,1.93386472]
[1725290413442,1e-06,58637.0,58636.0,1.93386472]
[1725290413633,1e-06,58637.0,58636.0,1.93426472]
[1725290413839,0.00025597,58642.0,58641.0,0.255804]
[1725290414039,0.00025597,58642.0,58641.0,0.816604]
[1725290414237,0.00025597,58642.0,58641.0,1.928204]
[1725290414439,0.00025597,58642.0,58641.0,1.926494]
[1725290415938,0.00325597,58642.0,58641.0,1.928494]
[1725290417848,0.00325597,58642.0,58641.0,0.085558]
[1725290418038,0.00325597,58642.0,58641.0,0.370826]
[1725290418243,0.00325597,58642.0,58641.0,0.731626]
[1725290421049,0.00325597,58642.0,58641.0,0.732026]
[1725290421258,0.00325597,58642.0,58641.0,1.243626]
[1725290421843,0.00325597,58642.0,58641.0,0.732026]
[1725290422541,0.00325597,58642.0,58641.0,1.243626]
[1725290423648,0.00325597,58642.0,58641.0,1.328894]
[1725290423956,0.00325597,58642.0,58641.0,1.848894]
[1725290424159,0.00325597,58642.0,58641.0,0.737294]
[1725290424546,0.00325597,58642.0,58641.0,1.248894]
[1725290425051,0.00325597,58642.0,58641.0,0.737294]
[1725290429558,0.00325597,58642.0,58641.0,0.446758]
[1725290429963,0.05065597,58642.0,58641.0,0.446758]
[1725290430467,0.05065597,58642.0,58641.0,0.445758]
[1725290431467,0.13592297,58642.0,58641.0,0.445758]
[1725290432159,0.13292297,58642.0,58641.0,0.445758]
[1725290432757,0.13292297,58642.0,58641.0,0.446758]
[1725290433067,0.13592297,58642.0,58641.0,0.445758]
[1725290433271,0.13592297,58642.0,58641.0,0.444758]
[1725290433454,0.13592297,58642.0,58641.0,0.445758]
[1725290434452,0.25592297,58642.0,58641.0,0.3622]
[1725290434962,0.25592297,58642.0,58641.0,0.3632]
[1725290435452,0.13592297,58642.0,58641.0,0.448468]
[1725290437252,0.13592297,58642.0,58641.0,0.447468]
[1725290438064,0.13292297,58642.0,58641.0,0.646468]
[1725290438252,0.13592297,58642.0,58641.0,0.647468]
[1725290439555,0.13592297,58642.0,58641.0,0.646468]
[1725290439764,0.13592297,58642.0,58641.0,0.647468]
[1725290440961,0.00325597,58642.0,58641.0,0.732736]
[1725290441754,0.00025597,58642.0,58641.0,0.731736]
[1725290442061,0.00325597,58642.0,58641.0,0.647468]
[1725290442861,0.00325597,58642.0,58641.0,0.646468]
[1725290444070,0.00325597,58642.0,58641.0,0.648468]
[1725290444667,0.00325597,58642.0,58641.0,0.647468]
[1725290448372,0.00025597,58642.0,58641.0,0.647468]
[1725290448670,0.00125597,58642.0,58641.0,0.647468]
[1725290448873,0.00125597,58642.0,58641.0,0.648468]
[1725290449262,0.00325597,58642.0,58641.0,0.648468]
[1725290451579,3.66162,58654.0,58641.0,2.206136]
[1725290451777,3.6625,58654.0,58653.0,0.370902]
[1725290451976,3.66162,58654.0,58653.0,0.370902]
[1725290452770,3.66462,58654.0,58653.0,0.370902]
[1725290454374,3.66162,58654.0,58653.0,0.370902]
[1725290455069,2.51342051,58654.0,58653.0,1.652884]
[1725290455271,1.6454159,58654.0,58653.0,1.652884]
[1725290455480,0.36679022,58654.0,58653.0,1.6891013]
[1725290455772,0.3608,58679.0,58676.0,0.085216]
[1725290455971,0.3608,58679.0,58678.0,0.2004]
[1725290456168,0.3608,58679.0,58678.0,0.0004]
[1725290457385,0.0475,58680.0,58679.0,0.085213]
[1725290457679,0.00025574,58684.0,58683.0,0.085207]
[1725290457982,0.00025574,58684.0,58683.0,0.646407]
[1725290458279,0.00025574,58684.0,58683.0,0.646007]
[1725290459478,0.00025574,58684.0,58683.0,0.647007]
[1725290459874,0.3262,58703.0,58683.0,0.647007]
[1725290459875,0.3262,58708.0,58688.0,0.0852]
[1725290460182,0.0452,58698.0,58688.0,1.246]
[1725290460483,0.0452,58698.0,58688.0,1.75756]
[1725290460684,0.17648,58702.0,58696.0,0.085188]
[1725290460984,0.0913,58702.0,58701.0,0.2]
[1725290461173,0.0913,58702.0,58701.0,0.285181]
[1725290461372,0.0464,58703.0,58701.0,0.2]
[1725290461583,0.0475,58702.0,58701.0,0.2]
[1725290462478,0.13268,58702.0,58701.0,0.203]
[1725290462686,0.13268,58702.0,58701.0,0.003]
[1725290462987,0.085184,58699.0,58697.0,0.56284]
[1725290463179,0.085186,58698.0,58697.0,0.5608]
[1725290464690,0.085186,58698.0,58697.0,0.3608]
[1725290465593,0.085186,58698.0,58697.0,0.36436932]
[1725290465783,0.085186,58698.0,58697.0,0.36536932]
[1725290466579,0.085186,58698.0,58697.0,0.36436932]
[1725290468090,0.085186,58698.0,58697.0,0.36516932]
[1725290468284,0.085186,58698.0,58697.0,0.36616932]
[1725290469195,0.085186,58698.0,58697.0,0.3626]
[1725290469196,0.170372,58698.0,58697.0,0.3626]
[1725290469388,0.170372,58698.0,58697.0,0.0018]
[1725290469693,0.085186,58698.0,58697.0,0.0018]
[1725290469877,0.08878361,58698.0,58697.0,0.0018]
[1725290470685,0.17396961,58698.0,58697.0,0.0018]
[1725290471288,1.28504961,58698.0,58697.0,0.0018]
[1725290471891,1.37023561,58698.0,58697.0,0.0018]
[1725290472194,0.170382,58694.0,58693.0,0.00025574]
[1725290472383,0.455573,58694.0,58693.0,0.00025574]
[1725290472585,0.170398,58689.0,58688.0,0.3608]
[1725290473291,0.370398,58689.0,58688.0,0.3608]
[1725290473686,0.369398,58689.0,58688.0,0.3608]
[1725290475380,0.455597,58689.0,58688.0,0.3688]
[1725290475587,0.455597,58689.0,58683.0,0.00025574]
[1725290475588,0.170412,58684.0,58683.0,0.00025574]
[1725290475781,0.731212,58684.0,58683.0,0.00025574]
[1725290476089,1.327618,58684.0,58683.0,0.00025574]
[1725290476692,0.170432,58677.0,58676.0,0.3608]
[1725290477691,0.08522,58674.0,58671.0,0.00025574]
[1725290477897,0.170446,58672.0,58671.0,0.00025574]
[1725290478798,0.216246,58672.0,58671.0,0.00025574]
[1725290479098,0.219246,58672.0,58671.0,0.00125574]
[1725290479692,0.219646,58672.0,58671.0,0.00025574]
[1725290479887,0.219646,58672.0,58671.0,0.00125574]
[1725290480594,0.232646,58672.0,58671.0,0.00225574]
[1725290481398,0.232646,58672.0,58671.0,0.00125574]
[1725290481399,0.144423,58672.0,58671.0,0.00125574]
[1725290481709,0.0612,58672.0,58671.0,0.00225574]
[1725290482000,0.0612,58672.0,58671.0,0.08748074]
[1725290482297,0.0482,58672.0,58671.0,0.08648074]
[1725290482504,0.0552,58672.0,58671.0,0.08748074]
[1725290482994,0.0094,58672.0,58671.0,0.08748074]
[1725290484205,0.0034,58672.0,58671.0,0.08648074]
[1725290484893,0.0034,58672.0,58671.0,0.08548074]
[1725290485600,0.0014,58672.0,58671.0,0.08548074]
[1725290485800,0.0014,58672.0,58671.0,0.08948074]
[1725290485801,0.0024,58672.0,58671.0,0.08948074]
[1725290486498,0.0004,58672.0,58671.0,0.08948074]
[1725290486694,0.0014,58672.0,58671.0,0.08948074]
[1725290486895,0.0014,58672.0,58671.0,0.09048074]
[1725290488299,0.0004,58672.0,58671.0,0.09448074]
[1725290489013,0.0004,58672.0,58671.0,0.09048074]
[1725290489299,0.0004,58672.0,58671.0,0.09448074]
[1725290489499,0.0004,58672.0,58671.0,1.20580074]
[1725290489800,0.0004,58672.0,58671.0,1.29102574]
[1725290489990,0.0004,58672.0,58671.0,1.29402574]
[1725290490191,0.0004,58672.0,58671.0,1.3450151]
[1725290490408,0.0004,58672.0,58671.0,1.3370151]
[1725290490704,0.0004,58672.0,58671.0,1.3460151]
[1725290491095,0.0004,58672.0,58671.0,1.3490151]
[1725290491292,0.0004,58672.0,58671.0,1.29802574]
[1725290491500,0.0004,58672.0,58671.0,1.29402574]
[1725290491707,0.0004,58672.0,58671.0,1.30402574]
[1725290491902,0.0004,58672.0,58671.0,1.21880074]
[1725290492205,0.0004,58672.0,58671.0,0.61880074]
[1725290492501,0.0004,58672.0,58671.0,1.30602574]
[1725290493006,0.0004,58672.0,58671.0,1.3580151]
[1725290493207,0.0004,58672.0,58671.0,1.3550151]
[1725290493407,0.0004,58672.0,58671.0,1.3420151]
[1725290493602,0.0004,58672.0,58671.0,1.3560151]
[1725290494104,0.00014426,58672.0,58671.0,1.4412401]
[1725290494496,0.00014426,58672.0,58671.0,1.39025074]
[1725290494907,0.00014426,58672.0,58671.0,1.39125074]
[1725290495402,0.0456,58685.0,58683.0,0.085206]
[1725290495596,0.130805,58685.0,58684.0,0.0004]
[1725290495807,0.130805,58685.0,58684.0,0.085606]
[1725290495808,0.0456,58685.0,58684.0,0.085606]
[1725290496104,0.0456,58685.0,58684.0,0.285606]
[1725290496705,0.130804,58685.0,58684.0,0.0004]
[1725290497304,0.130804,58685.0,58684.0,0.0014]
[1725290499803,0.130804,58685.0,58684.0,0.00499074]
[1725290500211,0.130804,58685.0,58684.0,0.00399074]
[1725290500798,0.216008,58685.0,58684.0,0.0004]
[1725290501910,0.216008,58685.0,58684.0,0.0014]
[1725290502918,0.130804,58685.0,58684.0,0.0014]
[1725290503106,0.130804,58685.0,58684.0,0.2014]
[1725290503601,0.0456,58685.0,58684.0,0.647406]
[1725290504119,0.0456,58685.0,58684.0,0.648406]
[1725290504617,0.416008,58685.0,58684.0,0.3622]
[1725290504817,0.416008,58685.0,58684.0,0.3632]
[1725290505110,0.416008,58685.0,58684.0,0.0024]
[1725290506724,0.416008,58685.0,58684.0,0.0054]
[1725290507022,0.501212,58685.0,58684.0,0.0054]
[1725290507314,0.501212,58685.0,58684.0,0.0014]
[1725290507517,0.501212,58685.0,58684.0,0.0024]
[1725290510509,0.501212,58685.0,58684.0,0.0014]
[1725290510717,0.501212,58685.0,58684.0,0.0024]
[1725290512116,0.085217,58676.0,58675.0,0.3608]
[1725290512315,0.255651,58676.0,58675.0,0.3608]
[1725290513223,0.255651,58676.0,58671.0,0.00025574]
[1725290513224,0.170446,58672.0,58671.0,0.00025574]
[1725290513916,0.170446,58672.0,58671.0,0.00377794]
[1725290514112,0.170446,58672.0,58671.0,0.00025574]
[1725290514313,0.085223,58672.0,58671.0,0.00025574]
[1725290515022,0.084223,58672.0,58671.0,0.00025574]
[1725290516326,0.084223,58672.0,58671.0,0.00525574]
[1725290516621,0.084223,58672.0,58671.0,0.00725574]
[1725290517124,0.084223,58672.0,58671.0,0.00525574]
[1725290517322,0.084223,58672.0,58671.0,0.00625574]
[1725290517323,0.085223,58672.0,58671.0,0.00625574]
[1725290517916,0.084223,58672.0,58671.0,0.00525574]
[1725290518116,0.086223,58672.0,58671.0,0.00125574]
[1725290518825,0.087223,58672.0,58671.0,0.00125574]
[1725290519612,0.086223,58672.0,58671.0,0.00125574]
[1725290520114,0.002,58672.0,58671.0,0.08648074]
[1725290520327,0.002,58672.0,58671.0,0.08548074]
[1725290521523,0.085213,58679.0,58676.0,0.085216]
[1725290521737,0.085213,58679.0,58678.0,0.0004]
[1725290522422,0.085213,58679.0,58678.0,0.085615]
[1725290523125,0.085213,58679.0,58678.0,0.086615]
[1725290523722,0.0459,58681.0,58680.0,0.085212]
[1725290523922,0.13111,58681.0,58680.0,0.085612]
[1725290524820,0.13111,58681.0,58680.0,0.0004]
[1725290525822,0.13111,58681.0,58680.0,0.085612]
[1725290526425,0.13111,58681.0,58680.0,0.091612]
[1725290526932,0.13111,58681.0,58680.0,0.085612]
[1725290527117,0.13111,58681.0,58680.0,0.086612]
[1725290530733,0.21632,58681.0,58680.0,0.0014]
[1725290530933,0.13111,58681.0,58680.0,0.0014]
[1725290532734,0.13111,58681.0,58680.0,0.085612]
[1725290533240,0.0012,58694.0,58680.0,1.11164]
[1725290533427,0.0012,58694.0,58688.0,0.6464]
[1725290534429,0.0012,58694.0,58688.0,2.11836]
[1725290535631,0.0012,58694.0,58688.0,1.51836]
[1725290535831,0.0012,58694.0,58688.0,2.11836]
[1725290536432,0.0012,58694.0,58688.0,1.53836]
[1725290536640,0.085194,58692.0,58688.0,0.8272]
[1725290536837,0.085194,58692.0,58688.0,0.8142]
[1725290537139,0.085194,58692.0,58688.0,0.8252]
[1725290537833,0.085194,58692.0,58688.0,0.82176163]
[1725290538036,0.085194,58692.0,58688.0,0.82776163]
[1725290538231,0.085197,58691.0,58688.0,0.82776163]
[1725290538835,0.085197,58691.0,58688.0,0.82676163]
[1725290539339,0.085197,58691.0,58688.0,0.81676163]
[1725290539541,0.085197,58691.0,58688.0,1.01276163]
[1725290539834,0.0012,58694.0,58688.0,1.01276163]
[1725290540035,0.0012,58694.0,58688.0,1.01576163]
[1725290540430,0.0012,58694.0,58688.0,1.01676163]
[1725290540637,0.0012,58694.0,58688.0,1.01176163]
[1725290540843,0.0484,58693.0,58688.0,1.01676163]
[1725290541334,0.2,58691.0,58688.0,0.73156163]
[1725290541542,0.08545474,58689.0,58688.0,0.73156163]
[1725290541736,0.17065374,58689.0,58688.0,0.73156163]
[1725290542540,0.17065374,58689.0,58688.0,0.73556163]
[1725290542745,0.17065374,58689.0,58688.0,0.73456163]
[1725290542938,0.17065374,58689.0,58688.0,0.73956163]
[1725290543143,0.17065374,58689.0,58688.0,0.37876163]
[1725290543533,0.17065374,58689.0,58688.0,0.36576163]
[1725290543735,0.17065374,58689.0,58688.0,0.36676163]
[1725290543938,0.17065374,58689.0,58688.0,0.00596163]
[1725290544141,0.17065374,58689.0,58688.0,0.0024]
[1725290545833,0.17065374,58689.0,58688.0,0.0014]
[1725290546034,0.17065374,58689.0,58688.0,0.0004]
[1725290546336,0.17065374,58689.0,58688.0,0.0014]
[1725290546842,0.17065374,58689.0,58688.0,0.0024]
[1725290549849,0.25585274,58689.0,58688.0,0.0014]
[1725290550833,0.08545474,58689.0,58688.0,0.0014]
[1725290551038,0.08545474,58689.0,58688.0,0.0024]
[1725290551244,0.00025574,58689.0,58688.0,0.0876]
[1725290552434,0.00025574,58689.0,58688.0,0.0866]
[1725290552648,0.00025574,58689.0,58688.0,0.0876]
[1725290553054,0.00025574,58689.0,58688.0,1.19876]
[1725290553348,0.00025574,58689.0,58688.0,1.20476]
[1725290553542,0.0012,58694.0,58693.0,0.085193]
[1725290553749,0.0012,58694.0,58693.0,0.645993]
[1725290553950,1e-08,58694.0,58693.0,1.89359411]
[1725290554248,1e-08,58694.0,58693.0,1.842706]
[1725290554645,1e-08,58694.0,58693.0,1.849706]
[1725290555050,0.0479,58707.0,58706.0,0.085174]
[1725290555244,0.0479,58707.0,58706.0,1.156974]
[1725290556943,0.0479,58707.0,58706.0,1.157974]
[1725290557446,0.0479,58707.0,58706.0,1.158974]
[1725290557649,0.0479,58707.0,58706.0,0.647974]
[1725290557854,0.0479,58707.0,58706.0,1.158974]
[1725290558152,0.0479,58707.0,58706.0,0.647974]
[1725290558539,0.0479,58707.0,58706.0,0.6515613]
[1725290560040,0.047,58711.0,58710.0,0.085168]
[1725290560240,0.047,58711.0,58710.0,0.285168]
[1725290560846,0.00025551,58712.0,58711.0,0.085167]
[1725290561048,0.00025551,58712.0,58711.0,0.445967]
[1725290561650,0.00025551,58712.0,58711.0,0.446767]
[1725290562848,0.00025551,58712.0,58711.0,0.447767]
[1725290564250,0.00025551,58712.0,58711.0,0.448767]
[1725290564454,0.00025551,58712.0,58711.0,0.0028]
[1725290564757,0.28542051,58712.0,58711.0,0.0028]
[1725290567051,0.37058551,58712.0,58711.0,0.0028]
[1725290567957,0.17058551,58712.0,58711.0,0.0028]
[1725290573362,0.08542051,58712.0,58711.0,0.0028]
[1725290573954,0.08542051,58712.0,58711.0,0.087967]
[1725290576371,0.08542051,58712.0,58711.0,0.0028]
[1725290581672,0.17058551,58712.0,58711.0,0.0028]
[1725290582274,1.03058551,58712.0,58711.0,0.0028]
[1725290582474,0.17058551,58712.0,58711.0,0.0028]
[1725290583361,0.25575051,58712.0,58711.0,0.0028]
[1725290583565,0.17423607,58712.0,58711.0,0.0028]
[1725290586672,0.17058551,58712.0,58711.0,0.0028]
[1725290587575,0.00025551,58712.0,58711.0,0.087967]
[1725290588869,0.085133,58735.0,58729.0,0.08514]
[1725290589070,0.085127,58739.0,58733.0,0.085135]
[1725290589071,0.0954,58734.0,58733.0,0.085135]
[1725290589278,0.0954,58734.0,58733.0,0.285135]
[1725290589769,0.0954,58734.0,58733.0,0.2]
[1725290590178,0.180533,58734.0,58730.0,0.3608]
[1725290590481,0.180533,58734.0,58733.0,0.001]
[1725290590686,0.265666,58734.0,58733.0,0.001]
[1725290590974,1.737266,58734.0,58733.0,0.001]
[1725290592185,1.737266,58734.0,58733.0,0.002]
[1725290592679,1.737266,58734.0,58733.0,0.001]
[1725290593382,0.541333,58734.0,58733.0,0.002]
[1725290594593,0.180533,58734.0,58733.0,0.002]
[1725290595169,0.180533,58734.0,58733.0,0.001]
[1725290595378,0.180533,58734.0,58733.0,0.002]
[1725290596378,0.180533,58734.0,58733.0,0.001]
[1725290596882,0.0954,58734.0,58733.0,0.00454011]
[1725290597084,0.180533,58734.0,58733.0,0.001]
[1725290597693,0.0954,58734.0,58733.0,0.001]
[1725290597981,0.180533,58734.0,58733.0,0.001]
[1725290599585,0.265666,58734.0,58733.0,0.001]
[1725290600679,0.265666,58734.0,58729.0,0.00363326]
[1725290600680,0.085139,58730.0,58729.0,0.00363326]
[1725290600982,0.0954,58734.0,58731.0,0.085137]
[1725290601185,0.0954,58734.0,58733.0,0.5616]
[1725290601186,0.180533,58734.0,58733.0,0.5616]
[1725290601488,0.180533,58734.0,58733.0,0.647735]
[1725290601986,0.180533,58734.0,58733.0,0.648735]
[1725290602386,0.180533,58734.0,58733.0,0.5626]
[1725290602577,0.265666,58734.0,58733.0,0.3626]
[1725290603887,0.265666,58734.0,58733.0,0.3616]
[1725290604893,0.265666,58734.0,58733.0,0.3626]
[1725290605092,0.265666,58734.0,58733.0,0.0028]
[1725290605590,0.265666,58734.0,58733.0,0.0018]
[1725290605786,0.265666,58734.0,58733.0,0.0028]
[1725290607685,0.265666,58734.0,58728.0,0.00025551]
[1725290607686,0.255423,58729.0,58728.0,0.00025551]
[1725290607887,0.455423,58729.0,58728.0,0.00025551]
[1725290608196,1.566263,58729.0,58728.0,0.00025551]
[1725290608896,1.927063,58729.0,58728.0,0.00025551]
[1725290609789,0.085156,58719.0,58712.0,0.00358627]
[1725290609989,0.085171,58708.0,58707.0,0.2488]
[1725290610382,0.085171,58708.0,58707.0,0.2]
[1725290610587,0.085174,58706.0,58705.0,0.3608]
[1725290610989,0.085174,58706.0,58705.0,0.36430935]
[1725290611291,0.081174,58706.0,58705.0,0.36430935]
[1725290611808,0.166348,58706.0,58705.0,0.36430935]
[1725290611993,0.081174,58706.0,58705.0,0.36430935]
[1725290612183,0.082174,58706.0,58705.0,0.36430935]
[1725290613192,0.081174,58706.0,58705.0,0.36430935]
[1725290613792,0.084174,58706.0,58705.0,0.36530935]
[1725290614195,0.084174,58706.0,58705.0,0.00450935]
[1725290614395,0.085174,58706.0,58705.0,0.00550935]
[1725290614599,0.086174,58706.0,58705.0,0.00550935]
[1725290615288,0.081174,58706.0,58705.0,0.00450935]
[1725290615491,0.086174,58706.0,58705.0,0.00550935]
[1725290617191,0.090174,58706.0,58705.0,0.00550935]
[1725290617398,0.090174,58706.0,58705.0,0.002]
[1725290618985,0.089174,58706.0,58705.0,0.002]
[1725290619191,0.134774,58706.0,58705.0,0.002]
[1725290619798,0.126774,58706.0,58705.0,0.001]
[1725290619994,0.129774,58706.0,58705.0,0.001]
[1725290620191,0.130774,58706.0,58705.0,0.002]
[1725290620392,0.215948,58706.0,58705.0,0.002]
[1725290620689,0.211948,58706.0,58705.0,0.001]
[1725290620892,0.215948,58706.0,58705.0,0.002]
[1725290622296,0.215948,58706.0,58705.0,0.001]
[1725290622598,0.215948,58706.0,58705.0,0.002]
[1725290628798,0.501122,58706.0,58705.0,0.002]
[1725290630699,0.455543,58701.0,58700.0,0.00025551]
[1725290630895,0.455943,58701.0,58700.0,0.00025551]
[1725290631908,0.459943,58701.0,58700.0,0.00025551]
[1725290632806,0.461943,58701.0,58700.0,0.00025551]
[1725290633910,2.019004,58701.0,58700.0,5.1e-07]
[1725290634613,2.879004,58701.0,58700.0,5.1e-07]
[1725290636705,2.88255499,58701.0,58700.0,5.1e-07]
[1725290637411,3.24335499,58701.0,58700.0,5.1e-07]
[1725290640412,3.24335499,58701.0,58678.0,0.085214]
[1725290640413,2.90263099,58701.0,58672.0,0.05103572]
[1725290640624,0.085222,58673.0,58672.0,0.05222749]
[1725290640810,0.085622,58673.0,58672.0,0.05222749]